bitfinex/quotes_ETHUSD_20260119
["timestamp","ask_amount","ask_price","bid_price","bid_amount"]
[1768795567677,3.11606608,3209.2,3208.9,0.002]
[1768795568240,4.1111667,3209.3,3208.9,0.002]
[1768795568435,3.11577636,3209.5,3208.9,0.82134498]
[1768795568674,0.515,3209.4,3208.9,0.82134498]
[1768795569448,3.63088756,3209.4,3208.9,0.82134498]
[1768795569779,0.99520609,3209.3,3208.9,0.002]
[1768795571371,0.99520609,3209.1,3208.9,0.002]
[1768795571677,6.23208276,3209.2,3208.9,0.002]
[1768795571678,1.51020609,3209.0,3208.9,0.002]
[1768795573186,0.515,3209.0,3208.5,0.002]
[1768795573390,0.99520609,3208.9,3208.5,0.002]
[1768795574074,4.11156044,3208.9,3208.5,0.002]
[1768795574278,0.99520609,3208.9,3208.5,0.002]
[1768795574570,4.11156213,3208.9,3208.5,0.002]
[1768795574773,3.63127255,3209.0,3208.5,0.82134498]
[1768795574986,0.515,3209.0,3208.5,0.82134498]
[1768795575387,3.63125328,3209.0,3208.5,0.82134498]
[1768795575585,3.63125328,3209.0,3208.5,0.002]
[1768795575586,4.62645937,3209.0,3208.5,0.002]
[1768795575789,1.51020609,3209.0,3208.5,0.002]
[1768795575969,4.62645802,3209.0,3208.5,0.82134498]
[1768795576881,0.99520609,3209.0,3208.5,0.82134498]
[1768795577203,3.1154589,3209.8,3208.6,0.515]
[1768795577399,0.99520609,3209.6,3208.6,0.515]
[1768795577903,0.515,3209.7,3208.6,0.515]
[1768795577904,0.99520609,3209.4,3208.6,0.515]
[1768795578089,0.99520609,3209.2,3208.6,0.515]
[1768795578292,0.99520609,3209.2,3208.6,0.91776012]
[1768795578691,0.99520609,3209.2,3208.6,4.03437586]
[1768795580984,0.99520609,3209.2,3208.7,0.515]
[1768795581300,0.515,3209.3,3208.7,0.515]
[1768795582511,4.56875072,3209.3,3208.7,0.515]
[1768795582670,1.45279283,3209.3,3208.7,3.6315263]
[1768795582870,1.45279283,3209.3,3208.8,0.40342864]
[1768795583676,1.45279283,3209.3,3208.8,0.91842864]
[1768795584605,1.45279283,3209.3,3208.5,3.11870294]
[1768795584606,0.515,3209.2,3208.5,0.92042864]
[1768795584903,0.515,3209.1,3208.5,3.11864034]
[1768795585074,0.515,3209.1,3208.6,1.23029267]
[1768795585274,0.515,3209.1,3208.6,0.91842864]
[1768795585474,0.515,3209.1,3208.5,0.002]
[1768795585475,0.93779283,3209.0,3208.5,0.002]
[1768795586512,0.93779283,3209.0,3208.2,0.92042864]
[1768795586513,0.93779283,3208.9,3208.2,0.92042864]
[1768795586696,0.93779283,3208.9,3208.2,0.002]
[1768795587614,0.93779283,3208.9,3208.2,3.11901061]
[1768795587784,0.93779283,3208.9,3208.2,3.83467396]
[1768795587979,0.93779283,3208.9,3208.2,1.63609199]
[1768795588179,0.93779283,3208.9,3208.2,0.92042864]
[1768795588410,0.93779283,3208.9,3208.2,4.03743018]
[1768795588612,0.93779283,3208.8,3208.2,0.92042864]
[1768795588914,0.515,3208.7,3208.2,0.92042864]
[1768795589286,0.515,3208.7,3208.2,0.002]
[1768795589287,1.45279283,3208.7,3208.2,0.002]
[1768795589491,1.45279283,3208.7,3208.1,0.002]
[1768795589492,0.93779283,3208.6,3208.1,0.002]
[1768795590015,6.80327538,3208.7,3207.8,0.002]
[1768795590016,0.93779283,3208.3,3207.8,0.002]
[1768795590213,0.97965215,3208.1,3207.8,0.002]
[1768795590415,0.515,3208.2,3207.8,0.002]
[1768795590717,3.63202012,3208.2,3207.8,0.002]
[1768795590918,0.515,3208.2,3207.8,0.002]
[1768795591412,3.63205399,3208.2,3207.8,0.002]
[1768795591914,0.97965215,3208.1,3207.8,0.002]
[1768795592514,0.68817994,3208.1,3207.8,0.002]
[1768795592881,0.97965215,3207.9,3207.3,0.002]
[1768795593106,0.97965215,3207.7,3207.3,0.002]
[1768795596110,4.09717403,3207.7,3207.3,0.002]
[1768795596985,0.97965215,3207.7,3207.3,0.002]
[1768795597218,4.0971684,3207.7,3207.3,0.002]
[1768795598531,4.0971684,3207.7,3207.1,0.93134343]
[1768795599289,0.515,3207.8,3207.1,4.04941989]
[1768795599591,3.63241784,3207.8,3207.2,0.97227291]
[1768795599911,4.55446992,3207.8,3207.2,0.97227291]
[1768795600315,1.43705208,3207.8,3207.2,0.97227291]
[1768795600828,4.5544645,3207.8,3207.2,0.97227291]
[1768795601044,1.43705208,3207.8,3207.2,0.97227291]
[1768795601505,0.515,3207.7,3207.3,0.97227291]
[1768795602618,0.92205208,3208.3,3207.4,0.97227291]
[1768795602818,0.515,3208.2,3207.4,0.97227291]
[1768795603017,3.11710981,3208.1,3207.4,0.97227291]
[1768795603741,4.03916189,3208.1,3207.4,0.97227291]
[1768795604137,0.92205208,3208.0,3207.4,0.97227291]
[1768795605019,3.11730415,3207.9,3207.4,0.97227291]
[1768795605220,4.03935623,3207.9,3207.2,0.97227291]
[1768795605404,0.92205208,3207.9,3207.3,0.97227291]
[1768795606602,0.515,3207.8,3207.3,0.97227291]
[1768795607433,0.92205208,3207.7,3207.1,0.97227291]
[1768795607738,0.92205208,3207.7,3206.9,0.97427291]
[1768795608239,0.92205208,3207.7,3207.0,3.11816386]
[1768795608554,0.92205208,3207.7,3207.1,0.97227291]
[1768795609320,4.03963386,3207.7,3207.1,0.97227291]
[1768795609638,0.92205208,3207.6,3207.1,0.97227291]
[1768795609858,0.92205208,3207.6,3206.9,0.97427291]
[1768795610557,0.92305208,3207.6,3206.9,0.97427291]
[1768795611062,0.92305208,3207.6,3207.3,0.002]
[1768795611769,0.92205208,3207.4,3206.9,0.97427291]
[1768795611935,0.515,3207.3,3206.9,0.97427291]
[1768795614073,0.515,3207.3,3206.9,0.002]
[1768795614074,0.98854709,3207.2,3206.9,0.002]
[1768795614366,0.515,3207.3,3206.9,0.002]
[1768795614367,1.50354709,3207.3,3206.9,0.002]
[1768795614930,1.50354709,3207.3,3206.9,0.94568701]
[1768795615637,0.98854709,3207.2,3206.9,0.002]
[1768795615833,1.50354709,3207.3,3206.9,0.002]
[1768795616732,0.515,3207.3,3206.9,0.94568701]
[1768795617331,0.515,3207.2,3206.9,0.94568701]
[1768795617530,0.001,3207.6,3207.0,0.94368701]
[1768795617734,0.515,3207.5,3207.0,0.94368701]
[1768795618265,0.515,3207.5,3207.0,4.0618544]
[1768795618437,0.515,3207.5,3207.0,0.94368701]
[1768795621647,0.515,3207.5,3207.1,0.94368701]
[1768795622079,0.515,3207.4,3207.1,0.94368701]
[1768795622252,0.001,3207.6,3207.3,0.94368701]
[1768795622454,0.515,3207.5,3207.3,0.94368701]
[1768795622682,4.10577066,3208.0,3207.3,0.94368701]
[1768795622975,0.515,3207.9,3207.3,0.94368701]
[1768795623175,0.515,3207.9,3207.4,0.94368701]
[1768795623346,1.50354709,3207.9,3207.4,0.94368701]
[1768795624669,4.6208856,3207.9,3207.4,0.94368701]
[1768795624971,4.6208856,3207.9,3207.2,0.94568701]
[1768795624972,0.98854709,3207.8,3207.2,0.94568701]
[1768795625844,0.98854709,3207.8,3207.2,0.002]
[1768795626044,0.98854709,3207.8,3207.2,0.94568701]
[1768795626243,0.98854709,3207.8,3207.2,1.35206381]
[1768795626473,0.515,3207.9,3207.3,0.94368701]
[1768795626774,4.62087808,3207.9,3207.3,0.94368701]
[1768795627561,0.98854709,3207.8,3207.3,0.94368701]
[1768795627776,0.515,3207.7,3207.3,0.94368701]
[1768795628969,0.98854709,3207.9,3207.4,0.94368701]
[1768795629156,0.515,3207.8,3207.4,0.94368701]
[1768795630981,0.98854709,3207.5,3206.9,0.002]
[1768795631157,1.67053787,3207.4,3206.9,0.002]
[1768795631366,0.515,3207.3,3206.9,0.002]
[1768795631878,1.50354709,3207.3,3206.9,0.002]
[1768795632079,0.515,3207.3,3206.9,0.94568701]
[1768795632782,0.98854709,3207.2,3206.9,0.002]
[1768795633493,4.10654412,3207.2,3206.9,0.002]
[1768795633656,0.98854709,3207.1,3206.9,0.002]
[1768795634895,4.10672607,3207.0,3206.9,0.002]
[1768795635194,0.98854709,3207.0,3206.9,0.002]
[1768795636254,0.98854709,3207.0,3206.6,0.002]
[1768795636461,0.98854709,3206.8,3206.6,0.002]
[1768795637087,4.04399549,3206.9,3206.6,0.002]
[1768795637387,0.515,3206.9,3206.6,0.002]
[1768795637551,3.11753561,3207.7,3206.6,0.002]
[1768795637552,0.98854709,3207.4,3206.7,0.64454298]
[1768795637758,0.515,3207.3,3206.7,0.64454298]
[1768795638379,1.50354709,3207.3,3206.7,0.64454298]
[1768795638758,0.98854709,3207.2,3206.7,0.64454298]
[1768795638962,0.98854709,3207.2,3206.6,0.002]
[1768795639285,0.98854709,3207.1,3206.6,0.002]
[1768795640973,0.98854709,3207.0,3206.6,0.002]
[1768795641682,1.50354709,3206.9,3206.6,0.002]
[1768795642194,0.515,3206.9,3206.6,0.64654298]
[1768795642394,0.515,3206.9,3206.7,0.64454298]
[1768795642571,0.98854709,3207.3,3206.7,0.64454298]
[1768795642771,0.515,3207.2,3206.7,0.64454298]
[1768795644098,1.50021892,3207.2,3206.7,0.64454298]
[1768795645692,4.61820356,3207.2,3206.7,0.64454298]
[1768795645997,1.50021892,3207.2,3206.7,0.64454298]
[1768795646507,0.98521892,3207.2,3206.7,0.64454298]
[1768795646686,0.001,3206.9,3206.7,0.64454298]
[1768795646864,0.001,3206.9,3206.8,0.64454298]
[1768795647718,0.001,3206.9,3206.8,4.13941565]
[1768795648046,0.001,3206.9,3206.8,1.0210422]
[1768795648194,0.001,3207.6,3206.9,0.64354298]
[1768795649193,0.98621892,3207.6,3206.9,0.64354298]
[1768795649503,0.98621892,3207.6,3206.8,0.37649922]
[1768795649504,0.98521892,3207.5,3206.8,0.37649922]
[1768795649681,0.98521892,3207.4,3206.7,0.64354298]
[1768795649881,0.98521892,3207.4,3206.7,3.11843939]
[1768795650814,0.98521892,3207.4,3206.8,3.76190378]
[1768795651001,0.98521892,3207.4,3206.9,0.64354298]
[1768795651207,0.515,3207.3,3206.9,0.64354298]
[1768795651408,0.515,3207.3,3207.0,0.37619038]
[1768795652718,0.515,3207.3,3207.0,1.01973336]
[1768795653307,0.515,3207.3,3207.0,0.37619038]
[1768795654105,0.515,3207.3,3207.0,1.01973336]
[1768795654407,0.22312572,3207.3,3207.1,0.64354298]
[1768795654808,0.001,3207.6,3207.1,0.64354298]
[1768795655023,0.515,3208.1,3207.2,0.91677207]
[1768795655187,0.98521892,3207.9,3207.0,0.91677207]
[1768795655609,0.98521892,3207.9,3206.8,0.91677207]
[1768795656104,5.83843668,3208.0,3206.6,4.03731047]
[1768795656105,0.98521892,3207.7,3206.6,4.03731047]
[1768795656301,0.98521892,3207.5,3206.7,1.60208334]
[1768795656490,0.98521892,3207.5,3206.8,0.91677207]
[1768795657519,0.98521892,3207.5,3206.7,1.60208334]
[1768795657688,0.98521892,3207.5,3206.7,0.91677207]
[1768795658115,3.11779011,3207.4,3206.7,0.91677207]
[1768795658336,0.91165086,3207.3,3206.7,0.91677207]
[1768795658688,0.91165086,3207.3,3206.6,0.002]
[1768795659118,0.91165086,3207.3,3206.6,0.93810178]
[1768795659326,0.91165086,3207.2,3206.6,0.93810178]
[1768795659512,1.42665086,3207.1,3206.6,0.93810178]
[1768795661526,0.515,3207.1,3206.6,3.12055954]
[1768795661690,0.515,3207.1,3206.7,0.93610178]
[1768795663018,0.515,3207.1,3206.8,0.93610178]
[1768795663201,0.515,3207.3,3206.9,0.93610178]
[1768795663527,0.515,3207.4,3206.9,0.5987619]
[1768795665629,0.91165086,3207.6,3206.9,0.5987619]
[1768795665925,0.515,3207.5,3206.9,0.5987619]
[1768795666339,0.515,3207.5,3206.9,3.11825934]
[1768795666492,0.515,3207.5,3207.0,0.5987619]
[1768795666695,0.91165086,3207.6,3207.0,0.5987619]
[1768795666917,4.54424746,3207.6,3207.1,0.5987619]
[1768795667623,1.42665086,3207.6,3207.1,0.5987619]
[1768795667826,1.42665086,3207.6,3207.2,0.5987619]
[1768795668129,0.515,3207.6,3207.2,0.5987619]
[1768795669798,0.515,3207.6,3207.2,0.6007619]
[1768795670922,0.91165086,3207.7,3207.2,3.718724]
[1768795671233,0.515,3207.6,3207.3,1.28244083]
[1768795671925,0.91165086,3207.7,3207.3,4.40029513]
[1768795672113,0.515,3207.7,3207.3,1.28244083]
[1768795672619,0.515,3207.7,3207.3,4.40032769]
[1768795673030,0.515,3207.7,3207.3,1.28244083]
[1768795673328,0.515,3207.7,3207.3,4.40032728]
[1768795673535,0.91165086,3207.8,3207.3,4.40032728]
[1768795673701,0.97554151,3208.0,3207.4,1.03899463]
[1768795674629,0.97554151,3208.0,3207.4,0.44023273]
[1768795674630,0.97554151,3207.9,3207.4,0.44023273]
[1768795675731,0.97554151,3207.9,3207.4,1.03899463]
[1768795676027,3.11722945,3208.0,3207.5,0.5987619]
[1768795676531,0.97554151,3207.9,3207.4,1.03899463]
[1768795677711,0.97554151,3207.9,3207.4,4.15676616]
[1768795677912,0.97554151,3207.9,3207.4,1.03899463]
[1768795678113,0.97554151,3207.9,3207.3,3.11786025]
[1768795678313,0.97554151,3207.9,3207.3,3.71662215]
[1768795679726,0.97554151,3207.9,3207.3,0.5987619]
[1768795679928,0.97554151,3207.8,3207.2,0.6007619]
[1768795680107,0.97554151,3207.8,3207.2,0.002]
[1768795680308,0.97554151,3207.6,3207.2,0.002]
[1768795681437,0.97554151,3207.5,3207.2,0.002]
[1768795681821,0.97554151,3207.5,3206.9,0.002]
[1768795682527,0.97554151,3207.2,3206.9,0.002]
[1768795682734,0.97554151,3207.1,3206.9,0.002]
[1768795683719,0.001,3207.3,3206.9,0.002]
[1768795683924,0.515,3207.2,3206.9,0.6027619]
[1768795685220,0.001,3207.3,3206.9,0.6027619]
[1768795685624,0.97554151,3207.8,3207.1,0.5997619]
[1768795685819,1.49054151,3207.8,3207.1,0.5997619]
[1768795686019,0.515,3207.8,3207.1,0.5997619]
[1768795686220,1.49054151,3207.8,3207.1,0.5997619]
[1768795686546,1.49054151,3207.8,3207.2,0.5997619]
[1768795688461,0.97554151,3207.7,3207.2,0.5997619]
[1768795690562,0.97554151,3207.7,3207.1,0.5997619]
[1768795691623,0.97554151,3207.7,3207.2,0.5997619]
[1768795692532,0.97554151,3207.7,3207.2,3.7177432]
[1768795692736,0.515,3208.0,3207.4,0.5997619]
[1768795692949,0.97554151,3207.9,3207.3,0.68357983]
[1768795693151,0.97554151,3207.9,3207.2,0.5997619]
[1768795694179,0.97554151,3207.9,3207.3,0.5997619]
[1768795694479,0.001,3207.4,3207.3,3.71764921]
[1768795694670,0.97554151,3207.8,3207.3,3.71764921]
[1768795694986,0.97554151,3207.9,3207.4,0.5997619]
[1768795695857,0.97554151,3207.9,3207.4,0.97172682]
[1768795696597,0.97554151,3208.1,3207.5,0.5997619]
[1768795698683,0.515,3208.1,3207.5,3.71743744]
[1768795698870,0.97554151,3208.0,3207.5,3.71743744]
[1768795699075,0.97554151,3208.0,3207.6,0.40894024]
[1768795701879,0.97554151,3208.0,3207.5,0.5997619]
[1768795702380,0.97554151,3208.0,3207.3,0.5997619]
[1768795702543,0.99278726,3207.9,3207.2,3.71972061]
[1768795702949,0.99278726,3207.8,3207.2,0.6017619]
[1768795703280,0.99278726,3207.8,3207.2,0.002]
[1768795704985,0.99278726,3207.8,3207.2,0.42538137]
[1768795705581,0.99278726,3207.7,3207.2,0.42538137]
[1768795705953,0.99378726,3207.7,3207.2,0.42538137]
[1768795706747,1.50878726,3207.7,3207.2,4.14306629]
[1768795707148,1.50878726,3207.7,3207.3,0.5997619]
[1768795707786,0.516,3207.7,3207.3,0.5997619]
[1768795708981,0.001,3207.7,3207.3,0.5997619]
[1768795709480,0.99278726,3207.6,3207.2,0.002]
[1768795711551,0.99278726,3207.5,3207.2,0.002]
[1768795711871,0.99278726,3207.4,3207.2,0.002]
[1768795712700,0.99278726,3207.6,3207.2,0.002]
[1768795712997,0.99278726,3207.6,3207.2,0.6017619]
[1768795713679,0.99278726,3207.6,3207.2,0.002]
[1768795715983,0.99278726,3207.6,3207.2,0.6017619]
[1768795716203,0.516,3207.7,3207.2,0.6017619]
[1768795716991,1.50878726,3207.7,3207.2,0.6017619]
[1768795717590,0.99278726,3208.1,3207.4,0.5987619]
[1768795717815,0.99278726,3208.1,3207.5,0.5987619]
[1768795717816,0.29188038,3208.0,3207.5,0.5987619]
[1768795718088,0.99278726,3208.1,3207.5,0.5987619]
[1768795718790,4.10990437,3208.1,3207.5,0.5987619]
[1768795718998,0.98208975,3208.0,3207.5,0.5987619]
[1768795720897,0.98208975,3207.9,3207.3,0.5987619]
[1768795721087,0.98208975,3207.9,3207.2,0.002]
[1768795722611,0.98208975,3207.7,3207.2,0.002]
[1768795722826,1.49708975,3207.7,3207.2,0.6007619]
[1768795723286,0.98208975,3207.6,3207.2,0.6007619]
[1768795723482,0.98208975,3207.9,3207.2,0.6007619]
[1768795723688,0.515,3208.0,3207.3,0.5987619]
[1768795723883,0.515,3208.0,3207.2,0.97265575]
[1768795723884,0.98208975,3207.9,3207.2,0.97265575]
[1768795724088,0.98208975,3207.9,3207.2,0.002]
[1768795724607,0.98208975,3207.7,3207.2,0.002]
[1768795727687,0.98208975,3207.7,3207.2,0.6007619]
[1768795729212,0.98208975,3207.7,3207.5,0.002]
[1768795730011,0.98208975,3207.6,3207.5,0.002]
[1768795732287,0.98208975,3207.8,3207.5,0.002]
[1768795737622,0.97161737,3207.9,3207.5,0.002]
[1768795737822,0.515,3207.8,3207.5,0.002]
[1768795737991,1.48661737,3207.8,3207.5,0.002]
[1768795741030,3.11665459,3208.6,3207.8,0.5987619]
[1768795741031,4.08833857,3208.5,3207.8,0.5987619]
[1768795741334,0.97261737,3208.4,3207.9,0.64325476]
[1768795741527,0.97261737,3208.4,3207.8,0.67295939]
[1768795742025,1.48761737,3208.4,3207.8,0.67295939]
[1768795742189,1.48761737,3208.4,3207.9,0.5987619]
[1768795743095,0.516,3208.4,3207.9,3.71604543]
[1768795743427,0.516,3208.4,3208.0,0.5987619]
[1768795746237,1.48761737,3208.4,3207.9,0.5987619]
[1768795746829,1.48761737,3208.4,3207.8,3.19153289]
[1768795746830,0.97161737,3208.3,3207.8,0.07419749]
[1768795747527,0.97161737,3208.3,3207.5,0.002]
[1768795747528,0.97161737,3208.2,3207.5,0.002]
[1768795747735,0.97161737,3208.1,3207.5,0.002]
[1768795747900,0.97161737,3207.9,3207.5,0.002]
[1768795750128,0.97161737,3207.8,3207.5,0.002]
[1768795751305,0.515,3207.7,3207.5,0.002]
[1768795751511,0.515,3207.6,3207.5,0.002]
[1768795752632,0.97161737,3208.2,3207.5,0.67495939]
[1768795752832,1.77833192,3208.1,3207.8,0.002]
[1768795753034,1.48661737,3208.1,3207.8,0.002]
[1768795753244,1.48761737,3208.1,3207.8,0.002]
[1768795754444,4.60473301,3208.1,3207.8,0.002]
[1768795754619,1.48761737,3208.1,3207.8,0.002]
[1768795754825,0.97261737,3208.1,3207.8,0.002]
[1768795755124,0.515,3208.0,3207.8,0.002]
[1768795756344,1.48661737,3208.0,3207.8,0.002]
[1768795757848,0.515,3208.0,3207.8,0.002]
[1768795758346,0.001,3208.1,3207.8,0.67495939]
[1768795760449,0.001,3208.1,3207.8,0.002]
[1768795760628,0.97261737,3208.1,3207.8,0.002]
[1768795761536,1.48761737,3208.1,3207.8,0.002]
[1768795761737,0.001,3208.1,3207.8,0.67495939]
[1768795761911,0.516,3208.1,3207.8,0.67495939]
[1768795762560,0.516,3208.1,3207.8,0.002]
[1768795764353,0.001,3208.1,3207.8,0.002]
[1768795764651,0.516,3208.1,3207.8,0.002]
[1768795765163,0.516,3208.1,3207.8,0.67495939]
[1768795768033,0.516,3208.1,3207.8,0.002]
[1768795772663,0.001,3208.1,3207.8,0.002]
[1768795772867,0.516,3208.1,3207.8,0.002]
[1768795773967,1.45399387,3208.1,3207.8,0.002]
[1768795775767,0.93799387,3208.0,3207.8,0.002]
[1768795776578,0.516,3208.1,3207.8,0.002]
[1768795777430,0.515,3208.2,3207.9,0.67295939]
[1768795777631,0.93799387,3209.8,3208.0,0.67195939]
[1768795777834,0.93799387,3209.6,3208.0,0.67195939]
[1768795778078,0.93799387,3209.4,3208.0,0.67195939]
[1768795778248,0.97872865,3209.2,3208.2,0.67195939]
[1768795778447,0.97872865,3209.0,3208.2,0.67195939]
[1768795778644,0.97872865,3209.0,3208.3,3.1169155]
[1768795778862,0.97872865,3209.0,3208.4,0.67195939]
[1768795779862,0.515,3208.9,3208.4,0.67195939]
[1768795780569,3.1161581,3209.1,3208.4,0.67195939]
[1768795780733,3.1161581,3209.1,3208.6,0.67195939]
[1768795780734,0.515,3209.1,3208.6,0.67195939]
[1768795781673,1.49372865,3209.1,3208.6,0.67195939]
[1768795782667,0.515,3209.0,3208.7,3.7884722]
[1768795782972,0.515,3209.0,3208.8,1.05080661]
[1768795783173,0.515,3209.0,3208.8,0.67195939]
[1768795783873,0.515,3209.0,3208.5,3.49560668]
[1768795783874,1.49372865,3209.0,3208.5,1.05084688]
[1768795784053,0.515,3209.0,3208.6,0.67195939]
[1768795784241,0.515,3209.0,3208.6,3.78856956]
[1768795785142,1.49372865,3209.0,3208.6,3.78856956]
[1768795785377,1.49372865,3209.0,3208.6,5.10036828]
[1768795786879,0.97872865,3209.0,3208.6,5.10036828]
[1768795787378,0.97872865,3209.0,3208.6,1.98375811]
[1768795787742,0.515,3209.1,3208.6,1.98375811]
[1768795788277,0.515,3209.1,3208.6,0.67195939]
[1768795788482,0.515,3209.1,3208.6,3.78857787]
[1768795788979,1.49372865,3209.1,3208.6,3.78857787]
[1768795789486,0.001,3208.7,3208.6,3.78857787]
[1768795789779,1.49372865,3209.1,3208.6,3.78857787]
[1768795790169,0.97872865,3209.3,3208.7,0.67195939]
[1768795790372,0.515,3209.2,3208.7,0.67195939]
[1768795790852,1.49372865,3209.2,3208.7,0.67195939]
[1768795792084,1.49372865,3209.2,3208.7,3.78847549]
[1768795793083,1.49372865,3209.2,3208.7,0.67195939]
[1768795793689,1.49372865,3209.2,3208.7,3.78847838]
[1768795793860,3.11578038,3209.5,3208.8,0.67195939]
[1768795794184,1.46405002,3209.4,3208.9,0.67195939]
[1768795794486,0.515,3209.3,3208.9,0.67195939]
[1768795795287,0.94905002,3209.5,3208.9,0.67195939]
[1768795795581,0.515,3209.4,3208.9,0.67195939]
[1768795796160,0.94905002,3209.8,3209.1,0.67195939]
[1768795796358,0.515,3209.5,3209.1,0.67195939]
[1768795796989,0.94905002,3209.6,3209.1,0.67195939]
[1768795797188,0.515,3209.5,3209.1,0.67195939]
[1768795797559,0.94905002,3209.6,3209.1,1.63416073]
[1768795797763,0.515,3209.8,3209.3,6.74156381]
[1768795797964,1.46405002,3209.8,3209.3,0.90783131]
[1768795799359,0.515,3209.8,3209.1,4.07828936]
[1768795799562,0.515,3209.8,3209.1,1.87003265]
[1768795799563,0.94905002,3209.7,3209.1,1.87003265]
[1768795799775,0.94905002,3209.7,3209.1,0.90783131]
[1768795800502,0.94905002,3209.7,3209.1,4.02396424]
[1768795800674,0.94905002,3209.9,3209.2,0.90783131]
[1768795800878,1.46405002,3209.9,3209.2,0.90783131]
[1768795801599,4.57944965,3209.9,3209.2,0.90783131]
[1768795801768,0.001,3209.3,3209.2,0.90783131]
[1768795802101,0.94905002,3209.8,3209.2,0.90783131]
[1768795804373,3.1154599,3209.8,3209.2,0.90783131]
[1768795804591,0.94905002,3209.7,3209.2,0.90783131]
[1768795805386,1.46405002,3209.9,3209.3,0.90783131]
[1768795807422,0.94905002,3209.8,3209.3,0.90783131]
[1768795808505,0.94905002,3209.8,3209.2,3.11603931]
[1768795808679,0.94905002,3209.8,3209.2,4.41342075]
[1768795809077,0.94905002,3209.8,3209.3,0.90783131]
[1768795809884,0.94905002,3209.8,3209.2,2.20521275]
[1768795811009,0.94905002,3209.8,3209.2,5.32125389]
[1768795811381,0.94905002,3209.8,3209.3,0.90783131]
[1768795812410,0.94905002,3209.8,3209.3,4.55589056]
[1768795812620,3.11498405,3210.3,3209.4,0.90783131]
[1768795812621,0.94905002,3210.3,3209.4,0.90783131]
[1768795812921,0.94905002,3210.1,3209.4,0.90783131]
[1768795813415,0.001,3209.5,3209.4,0.90783131]
[1768795813585,0.94905002,3210.0,3209.4,1.99819646]
[1768795814427,3.11532147,3210.0,3209.4,1.99819646]
[1768795814588,0.94905002,3209.9,3209.4,0.90783131]
[1768795818420,0.94905002,3209.9,3209.2,3.62997694]
[1768795818618,0.94905002,3209.9,3209.3,0.90783131]
[1768795820929,0.94905002,3209.8,3209.1,6.73480474]
[1768795821131,0.94905002,3209.8,3208.9,4.02412603]
[1768795821303,0.94905002,3209.8,3209.0,4.02404899]
[1768795821497,0.94905002,3209.8,3209.0,0.90783131]
[1768795821702,0.94905002,3209.6,3209.0,0.90783131]
[1768795821927,0.94905002,3209.6,3209.0,1.31024116]
[1768795822129,0.94905002,3209.6,3209.0,4.42646453]
[1768795822536,0.94905002,3209.6,3209.0,1.31024116]
[1768795822715,0.94905002,3209.6,3209.1,0.97373096]
[1768795823035,1.44217676,3209.8,3209.1,5.82697343]
[1768795823330,1.44217676,3209.8,3209.3,0.97373096]
[1768795825041,0.001,3209.6,3209.3,0.97373096]
[1768795828133,0.001,3209.6,3209.3,4.08966733]
[1768795828335,0.001,3209.6,3209.3,0.97373096]
[1768795828499,0.92717676,3209.8,3209.3,0.97373096]
[1768795828702,0.92717676,3209.8,3209.4,0.97373096]
[1768795829529,0.92717676,3209.7,3209.3,0.9916709]
[1768795829837,0.92717676,3209.7,3209.2,0.97373096]
[1768795830538,0.92717676,3209.7,3209.3,0.97373096]
[1768795830926,0.92717676,3209.8,3209.3,0.97373096]
[1768795833237,4.04264003,3209.8,3209.3,0.97373096]
[1768795833646,0.92717676,3209.7,3209.3,0.97373096]
[1768795834943,0.92717676,3209.8,3209.3,1.38271508]
[1768795836720,0.001,3209.6,3209.3,1.38271508]
[1768795837653,3.11520693,3210.1,3209.3,1.38271508]
[1768795837654,0.92717676,3210.6,3209.4,0.97373096]
[1768795837815,0.92717676,3210.3,3209.4,0.97373096]
[1768795838019,0.92717676,3210.1,3209.4,0.97373096]
[1768795838216,1.44217676,3210.0,3209.4,0.97373096]
[1768795838512,0.93003024,3209.9,3209.4,0.97373096]
[1768795839870,0.93003024,3210.1,3209.5,0.94891674]
[1768795840168,0.93003024,3210.1,3209.6,1.35539166]
[1768795840323,0.93003024,3210.1,3209.6,0.40647492]
[1768795842466,0.93003024,3210.1,3209.6,1.35539166]
[1768795842749,0.93003024,3210.5,3210.0,0.94891674]
[1768795842954,1.44403024,3210.6,3210.1,0.94891674]
[1768795843516,0.93003024,3210.5,3210.1,0.94891674]
[1768795847650,4.04464737,3210.7,3210.1,0.94891674]
[1768795848436,0.001,3210.2,3210.1,0.94891674]
[1768795848634,0.93003024,3210.6,3210.1,1.93804147]
[1768795849823,0.93003024,3210.8,3210.2,0.94891674]
[1768795850054,0.93003024,3211.2,3210.7,0.94891674]
[1768795850456,0.93003024,3211.1,3210.7,0.94891674]
[1768795850760,0.93003024,3211.1,3210.5,0.94891674]
[1768795852878,3.11491096,3211.4,3210.7,0.92692902]
[1768795852879,1.47236217,3211.3,3210.7,0.92692902]
[1768795853428,0.95836217,3211.3,3210.7,0.92692902]
[1768795853722,1.47236217,3211.3,3210.7,0.92692902]
[1768795854145,0.001,3211.4,3210.7,0.92692902]
[1768795854362,0.001,3211.4,3210.9,0.92692902]
[1768795854827,0.95936217,3211.4,3210.9,0.92692902]
[1768795855260,0.001,3211.4,3211.0,0.92692902]
[1768795858642,0.95936217,3211.4,3210.8,2.15695719]
[1768795859450,0.95936217,3211.4,3210.6,1.84730827]
[1768795859451,0.95836217,3211.2,3210.6,1.84730827]
[1768795860875,0.001,3211.1,3210.6,1.44092902]
[1768795862238,0.001,3211.1,3210.6,4.5556091]
[1768795862438,0.001,3211.1,3210.7,0.92692902]
[1768795867653,0.001,3211.4,3210.8,0.92692902]
[1768795867881,0.95936217,3211.4,3210.8,0.92692902]
[1768795868695,0.95936217,3211.4,3210.8,4.04140639]
[1768795869594,0.95936217,3211.4,3210.9,0.92692902]
[1768795871706,0.95936217,3211.4,3210.9,4.0412892]
[1768795872158,0.95936217,3211.4,3210.9,0.92692902]
[1768795872598,0.95936217,3211.4,3210.9,3.11435458]
[1768795872805,0.001,3211.4,3211.0,0.92892902]
[1768795873009,0.001,3211.1,3211.0,0.92892902]
[1768795873175,0.001,3211.4,3211.1,0.92692902]
[1768795877209,0.95936217,3211.4,3211.0,0.002]
[1768795878084,0.95836217,3211.3,3211.0,0.002]
[1768795879513,0.001,3211.4,3211.0,0.92892902]
[1768795880004,0.001,3211.4,3211.1,0.92692902]